fUST/lending_fUST_20250527
["ID","MTS","AMOUNT","RATE_DAILY","PERIOD"]
[362424799,1748281644164,-430.0,0.00024657,3]
[362424800,1748281644188,-430.0,0.00024657,3]
[362424801,1748281644210,-438.1520334,0.00024657,3]
[362424802,1748281644235,-346.79,0.00024657,3]
[362424803,1748281644257,-430.0,0.00024657,3]
[362424804,1748281644279,-430.0,0.00024657,3]
[362424805,1748281644302,-482.52,0.00024657,3]
[362424806,1748281644324,-430.0,0.00024657,3]
[362424807,1748281644347,-430.0,0.00024657,3]
[362424808,1748281644373,-674.03,0.00024657,3]
[362424809,1748281644397,-430.0,0.00024657,3]
[362424810,1748281644422,-674.03,0.00024657,3]
[362424811,1748281644443,-430.0,0.00024657,3]
[362424812,1748281644466,-460.06,0.00024657,3]
[362424813,1748281644489,-400.0,0.00024657,3]
[362424814,1748281644513,-674.03,0.00024657,3]
[362424815,1748281644537,-430.0,0.00024657,3]
[362424816,1748281644565,-674.03,0.00024657,3]
[362424817,1748281644588,-674.03,0.00024657,3]
[362424818,1748281644614,-674.03,0.00024657,3]
[362424819,1748281644638,-674.03,0.00024657,3]
[362424820,1748281644661,-674.03,0.00024657,3]
[362424821,1748281644684,-674.03,0.00024657,3]
[362424822,1748281644707,-674.03,0.00024657,3]
[362424823,1748281644730,-674.03,0.00024657,3]
[362424824,1748281644754,-674.03,0.00024657,3]
[362424825,1748281644777,-674.03,0.00024657,3]
[362424826,1748281644801,-674.03,0.00024657,3]
[362424827,1748281644826,-674.03,0.00024657,3]
[362424828,1748281644850,-674.03,0.00024657,3]
[362424829,1748281644874,-674.03,0.00024657,3]
[362424830,1748281644896,-430.0,0.00024657,3]
[362424831,1748281644919,-430.0,0.00024657,3]
[362424832,1748281644942,-674.03,0.00024657,3]
[362424833,1748281644965,-430.0,0.00024657,3]
[362424834,1748281644991,-529.57791612,0.00024657,3]
[362424875,1748281832602,-295.04531343,0.00021164,2]
[362424876,1748281832614,-204.95468657,0.00021164,2]
[362424877,1748281832624,-372.44006933,0.00022557,2]
[362424878,1748281832637,-293.85068442,0.00023141,2]
[362424879,1748281832647,-9770.0088971,0.00023183,2]
[362424880,1748281832657,-500.0,0.00023356,2]
[362424881,1748281832666,-150.463,0.00023575,2]
[362424882,1748281832675,-150.0,0.00023575,2]
[362424884,1748281832685,-150.0,0.00023575,2]
[362424885,1748281832695,-232.959739,0.00023632,2]
[362424886,1748281832704,-212.59253735,0.00023987,2]
[362424887,1748281832714,-423.08503179,0.00023989,2]
[362424888,1748281832723,-160.0,0.00023989,2]
[362424890,1748281832733,-160.0,0.00023989,2]
[362424891,1748281832743,-237.86258173,0.00023989,2]
[362424892,1748281832752,-300.0,0.00023989,2]
[362424893,1748281832762,-300.0,0.00023989,2]
[362424894,1748281832772,-300.0,0.00023989,2]
[362424895,1748281832782,-183.0,0.00023989,2]
[362424896,1748281832792,-300.0,0.00023989,2]
[362424897,1748281832801,-2924.4915304,0.0002399,2]
[362424898,1748281832811,-607.309929,0.00024163,3]
[362424899,1748281832822,-323.55,0.000245,2]
[362424901,1748281832831,-390.6128722,0.00024557,2]
[362424903,1748281832841,-548.93256579,0.00024557,2]
[362424904,1748281832851,-548.93256578,0.00024618,2]
[362424905,1748281832860,-500.0,0.00024655,2]
[362424906,1748281832870,-31.84308389,0.00024655,2]
[362424907,1748281832887,-370.29486304,0.00024655,2]
[362424908,1748281832897,-500.0,0.00024655,2]
[362424910,1748281832907,-500.0,0.00024655,2]
[362424912,1748281832917,-500.0,0.00024655,2]
[362424913,1748281832926,-500.0,0.00024655,2]
[362424915,1748281832937,-500.0,0.00024655,2]
[362424917,1748281832946,-500.0,0.00024655,2]
[362424918,1748281832956,-500.0,0.00024655,2]
[362424920,1748281832965,-500.0,0.00024655,2]
[362424921,1748281832975,-500.0,0.00024655,2]
[362424922,1748281832986,-500.0,0.00024655,2]
[362424923,1748281832996,-362.06948281,0.00024655,2]
[362424924,1748281833006,-1981.47266201,0.00024656,2]
[362424925,1748281833017,-469.70038266,0.00024656,2]
[362424926,1748281833027,-500.0,0.00024656,2]
[362424927,1748281833037,-500.0,0.00024656,2]
[362424928,1748281833047,-500.0,0.00024656,2]
[362424929,1748281833058,-537.28466612,0.00024656,2]
[362424930,1748281833068,-500.0,0.00024656,2]
[362424931,1748281833079,-546.09034032,0.00024656,2]
[362424932,1748281833089,-254.24625032,0.00024656,2]
[362424933,1748281833100,-500.0,0.00024656,2]
[362424934,1748281833111,-222.17547842,0.00024656,2]
[362424935,1748281833121,-177.97237522,0.00024656,2]
[362424936,1748281833131,-500.0,0.00024656,2]
[362424937,1748281833141,-500.0,0.00024656,2]
[362424938,1748281833152,-395.63743514,0.00024656,2]
[362424939,1748281833162,-500.0,0.00024656,2]
[362424940,1748281833172,-2046.79170483,0.00024656,2]
[362424995,1748281840531,-2748.27829517,0.00024656,2]
[362424996,1748281840542,-430.0,0.00024657,3]
[362424997,1748281840552,-430.0,0.00024657,3]
[362424998,1748281840561,-430.0,0.00024657,3]
[362424999,1748281840571,-246.93,0.00024657,3]
[362425000,1748281840581,-430.0,0.00024657,3]
[362425001,1748281840591,-400.00118277,0.00024657,3]
[362425002,1748281840600,-532.06703405,0.00024657,3]
[362425003,1748281840611,-401.26771658,0.00024657,3]
[362425004,1748281840620,-430.0,0.00024657,3]
[362425005,1748281840630,-549.95104839,0.00024657,3]
[362425006,1748281840640,-430.0,0.00024657,3]
[362425007,1748281840649,-430.0,0.00024657,3]
[362425008,1748281840659,-430.0,0.00024657,3]
[362425009,1748281840669,-430.0,0.00024657,3]
[362425010,1748281840679,-430.0,0.00024657,3]
[362425011,1748281840689,-430.0,0.00024657,3]
[362425012,1748281840700,-415.9081,0.00024657,3]
[362425013,1748281840710,-204.26146456,0.00024657,3]
[362425014,1748281840727,-202.37113447,0.00024657,3]
[362425015,1748281840738,-430.0,0.00024657,3]
[362425016,1748281840747,-430.0,0.00024657,3]
[362425017,1748281840757,-430.0,0.00024657,3]
[362425018,1748281840766,-400.0,0.00024657,3]
[362425019,1748281840776,-430.0,0.00024657,3]
[362425020,1748281840785,-430.0,0.00024657,3]
[362425021,1748281840795,-430.0,0.00024657,3]
[362425022,1748281840805,-430.0,0.00024657,3]
[362425023,1748281840815,-410.09164044,0.00024657,3]
[362425024,1748281840826,-430.0,0.00024657,3]
[362425025,1748281840835,-801.37,0.00024657,3]
[362425026,1748281840844,-430.0,0.00024657,3]
[362425027,1748281840854,-801.37,0.00024657,3]
[362425028,1748281840863,-430.0,0.00024657,3]
[362425029,1748281840873,-801.37,0.00024657,3]
[362425030,1748281840883,-430.0,0.00024657,3]
[362425031,1748281840892,-801.37,0.00024657,3]
[362425032,1748281840902,-801.37,0.00024657,3]
[362425033,1748281840911,-801.37,0.00024657,3]
[362425034,1748281840921,-430.0,0.00024657,3]
[362425035,1748281840930,-116.60025884,0.00024657,3]
[362425036,1748281840943,-684.76974116,0.00024657,3]
[362425037,1748281840953,-430.0,0.00024657,3]
[362425038,1748281840962,-801.37,0.00024657,3]
[362425039,1748281840972,-250.0,0.00024657,3]
[362425040,1748281840981,-334.68769374,0.00024657,3]
[362425041,1748281841249,-300.0,0.00024656,2]
[362425042,1748281841258,-466.68230626,0.00024657,3]
[362425043,1748281841268,-801.37,0.00024657,3]
[362425044,1748281841278,-451.64453425,0.00024657,3]
[362425045,1748281841287,-801.37,0.00024657,3]
[362425046,1748281841296,-430.0,0.00024657,3]
[362425047,1748281841305,-801.37,0.00024657,3]
[362425048,1748281841315,-430.0,0.00024657,3]
[362425049,1748281841324,-801.37,0.00024657,3]
[362425050,1748281841334,-417.37,0.00024657,3]
[362425051,1748281841343,-801.37,0.00024657,3]
[362425052,1748281841353,-801.37,0.00024657,3]
[362425053,1748281841362,-801.37,0.00024657,3]
[362425054,1748281841372,-801.37,0.00024657,3]
[362425055,1748281841381,-801.37,0.00024657,3]
[362425056,1748281841391,-801.37,0.00024657,3]
[362425057,1748281841401,-430.0,0.00024657,3]
[362425058,1748281841411,-146.70139968,0.00024657,3]
[362425059,1748281841424,-654.66860032,0.00024657,3]
[362425060,1748281841434,-801.37,0.00024657,3]
[362425061,1748281841447,-430.0,0.00024657,3]
[362425062,1748281841457,-801.37,0.00024657,3]
[362425063,1748281841466,-430.0,0.00024657,3]
[362425064,1748281841476,-801.37,0.00024657,3]
[362425065,1748281841486,-237.07976332,0.00024657,3]
[362425066,1748281841496,-801.59267468,0.00024657,3]
[362425067,1748281841505,-184.94896168,0.00024657,3]
[362425068,1748281841520,-245.05103832,0.00024657,3]
[362425069,1748281841530,-430.0,0.00024657,3]
[362425070,1748281841540,-430.0,0.00024657,3]
[362425071,1748281841550,-340.98310873,0.00024657,3]
[362425072,1748281841559,-430.0,0.00024657,3]
[362425073,1748281841569,-430.0,0.00024657,3]
[362425074,1748281841579,-430.0,0.00024657,3]
[362425075,1748281841590,-578.79,0.00024657,3]
[362425076,1748281841599,-430.0,0.00024657,3]
[362425077,1748281841609,-430.0,0.00024657,3]
[362425078,1748281841619,-435.26812203,0.00024657,3]
[362425079,1748281841628,-430.0,0.00024657,3]
[362425080,1748281841639,-430.0,0.00024657,3]
[362425081,1748281841650,-430.0,0.00024657,3]
[362425082,1748281841659,-430.0,0.00024657,3]
[362425083,1748281841669,-430.0,0.00024657,3]
[362425084,1748281841679,-442.78,0.00024657,3]
[362425085,1748281841689,-430.0,0.00024657,3]
[362425086,1748281841699,-430.0,0.00024657,3]
[362425087,1748281841708,-430.0,0.00024657,3]
[362425088,1748281841718,-403.69965014,0.00024657,3]
[362425089,1748281841728,-430.0,0.00024657,3]
[362425090,1748281841737,-371.93817108,0.00024657,3]
[362425091,1748281841748,-430.0,0.00024657,3]
[362425092,1748281841760,-430.0,0.00024657,3]
[362425093,1748281841770,-404.4126551,0.00024657,3]
[362425094,1748281841783,-25.5873449,0.00024657,3]
[362425095,1748281841792,-430.0,0.00024657,3]
[362425096,1748281841801,-317.20679133,0.00024657,3]
[362425097,1748281841815,-115.13461091,0.00024657,3]
[362425098,1748281841824,-378.14795062,0.00024657,3]
[362425151,1748281843931,-51.85204938,0.00024657,3]
[362425152,1748281843940,-402.35406267,0.00024657,3]
[362425153,1748281843950,-437.71180655,0.00024657,3]
[362425154,1748281843960,-430.0,0.00024657,3]
[362425155,1748281843970,-430.0,0.00024657,3]
[362425156,1748281843979,-430.0,0.00024657,3]
[362425157,1748281843989,-430.0,0.00024657,3]
[362425158,1748281843998,-319.50595859,0.00024657,3]
[362425159,1748281844007,-430.0,0.00024657,3]
[362425160,1748281844018,-430.0,0.00024657,3]
[362425161,1748281844027,-430.0,0.00024657,3]
[362425162,1748281844038,-430.0,0.00024657,3]
[362425163,1748281844047,-510.18299165,0.00024657,3]
[362425164,1748281844056,-402.10288342,0.00024657,3]
[362425165,1748281844065,-310.54718042,0.00024657,3]
[362425166,1748281844075,-430.0,0.00024657,3]
[362425167,1748281844084,-430.0,0.00024657,3]
[362425168,1748281844093,-430.0,0.00024657,3]
[362425169,1748281844102,-430.0,0.00024657,3]
[362425170,1748281844112,-430.0,0.00024657,3]
[362425171,1748281844121,-290.0,0.00024657,3]
[362425172,1748281844130,-271.71074763,0.00024657,3]
[362425173,1748281844139,-403.94532322,0.00024657,3]
[362425174,1748281844149,-500.0,0.00024657,3]
[362425175,1748281844158,-298.73186532,0.00024657,3]
[362425176,1748281844167,-430.0,0.00024657,3]
[362425177,1748281844176,-430.0,0.00024657,3]
[362425178,1748281844185,-578.25653715,0.00024657,3]
[362425179,1748281844195,-430.0,0.00024657,3]
[362425180,1748281844204,-430.0,0.00024657,3]
[362425181,1748281844213,-596.65,0.00024657,3]
[362425182,1748281844222,-430.0,0.00024657,3]
[362425183,1748281844231,-596.65,0.00024657,3]
[362425184,1748281844240,-430.0,0.00024657,3]
[362425185,1748281844249,-32.00993873,0.00024657,3]
[362425186,1748281844337,-397.99006127,0.00024657,3]
[362425187,1748281844346,-100.53613233,0.00024657,3]
[362425188,1748281844358,-335.99500742,0.00024657,3]
[362425189,1748281844367,-596.65,0.00024657,3]
[362425190,1748281844377,-101.45247399,0.00024657,3]
[362425215,1748281846251,-328.54752601,0.00024657,3]
[362425216,1748281846261,-596.65,0.00024657,3]
[362425217,1748281846271,-306.59745851,0.00024657,3]
[362425218,1748281846282,-596.65,0.00024657,3]
[362425219,1748281846291,-596.65,0.00024657,3]
[362425220,1748281846301,-596.65,0.00024657,3]
[362425221,1748281846310,-430.0,0.00024657,3]
[362425222,1748281846320,-596.65,0.00024657,3]
[362425223,1748281846330,-596.65,0.00024657,3]
[362425224,1748281846339,-596.65,0.00024657,3]
[362425225,1748281846348,-596.65,0.00024657,3]
[362425226,1748281846359,-596.65,0.00024657,3]
[362425227,1748281846368,-596.65,0.00024657,3]
[362425228,1748281846378,-596.65,0.00024657,3]
[362425229,1748281846387,-596.65,0.00024657,3]
[362425230,1748281846397,-596.65,0.00024657,3]
[362425231,1748281846407,-596.65,0.00024657,3]
[362425232,1748281846416,-596.65,0.00024657,3]
[362425233,1748281846427,-507.72,0.00024657,3]
[362425234,1748281846438,-894.64583333,0.00024657,3]
[362425235,1748281846450,-596.65,0.00024657,3]
[362425236,1748281846460,-596.65,0.00024657,3]
[362425237,1748281846470,-430.0,0.00024657,3]
[362425238,1748281846483,-596.65,0.00024657,3]
[362425239,1748281846492,-596.65,0.00024657,3]
[362425240,1748281846502,-596.65,0.00024657,3]
[362425241,1748281846512,-596.85772,0.00024657,3]
[362425242,1748281846523,-430.0,0.00024657,3]
[362425243,1748281846534,-430.0,0.00024657,3]
[362425244,1748281846544,-430.0,0.00024657,3]
[362425245,1748281846554,-430.0,0.00024657,3]
[362425246,1748281846563,-430.0,0.00024657,3]
[362425247,1748281846573,-430.0,0.00024657,3]
[362425248,1748281846582,-430.0,0.00024657,3]
[362425249,1748281846592,-545.94,0.00024657,3]
[362425250,1748281846602,-380.11971891,0.00024657,3]
[362425251,1748281846611,-430.0,0.00024657,3]
[362425252,1748281846728,-430.0,0.00024657,3]
[362425253,1748281846739,-430.0,0.00024657,3]
[362425254,1748281846750,-410.40700973,0.00024657,3]
[362425255,1748281846760,-426.44449646,0.00024657,3]
[362425256,1748281846770,-309.72023705,0.00024657,3]
[362425257,1748281846785,-120.27976295,0.00024657,3]
[362425258,1748281846795,-430.0,0.00024657,3]
[362425259,1748281846805,-237.92050529,0.00024657,3]
[362425277,1748282753150,-553.8296049,0.00020363,2]
[362425278,1748282753172,-221.53184196,0.00020363,2]
[362425279,1748282753193,-173.057224,0.00020363,2]
[362425280,1748282753216,-158.29106114,0.00020534,2]
[362425281,1748282828124,-280.60987426,0.00020483,2]
[362425283,1748282953107,-398.41765708,0.000189,2]
[362425284,1748282962288,-10.81842422,0.000189,2]
[362425285,1748282962313,-572.5,0.00020483,2]
[362425286,1748282962335,-160.0,0.00020962,2]
[362425287,1748282962357,-286.0,0.00020991,2]
[362425288,1748282962379,-300.0,0.00020991,2]
[362425289,1748282962402,-300.0,0.00020991,2]
[362425290,1748282962424,-300.0,0.00020991,2]
[362425291,1748282962447,-24900.0,0.00020992,2]
[362425292,1748282962469,-500.0,0.00021164,2]
[362425293,1748282962496,-563.91413932,0.00021425,2]
[362425294,1748282962520,-595.78549809,0.00021425,2]
[362425295,1748282962543,-164.512,0.00021426,2]
[362425296,1748282962568,-20416.54352155,0.00021426,2]
[362425297,1748282971122,-272.8240542,0.00019326,2]
[362425298,1748282971143,-236.87160839,0.00021426,2]
[362425311,1748283032237,-500.0,0.00021164,2]
[362425313,1748283032247,-619.54892123,0.00021426,2]
[362425315,1748283032258,-160.0,0.00021426,2]
[362425317,1748283032267,-300.0,0.00021776,2]
[362425319,1748283032277,-380.45107877,0.00021777,2]
[362425325,1748283032478,-1205.41233227,0.00021777,2]
[362425356,1748283040494,-9728.43384972,0.00021777,2]
[362425357,1748283040504,-300.0,0.00022117,2]
[362425358,1748283040513,-276.91480245,0.00022118,2]
[362425359,1748283040523,-232.9597391,0.00022202,2]
[362425360,1748283040533,-24900.0,0.00022355,2]
[362425361,1748283040543,-160.0,0.00022789,2]
[362425362,1748283040565,-160.0,0.00022789,2]
[362425363,1748283040575,-12654.40314616,0.00022789,2]
[362425364,1748283040584,-535.86810183,0.000229,8]
[362425365,1748283040594,-789.53,0.00022923,3]
[362425366,1748283040604,-207.4,0.00022935,2]
[362425367,1748283040614,-151.0,0.00022935,2]
[362425368,1748283040624,-151.0,0.00022935,2]
[362425369,1748283040635,-151.0,0.00022935,2]
[362425370,1748283040645,-151.0,0.00022935,2]
[362425371,1748283040655,-151.0,0.00022935,2]
[362425372,1748283040665,-151.0,0.00022935,2]
[362425373,1748283040675,-161.07,0.00022935,2]
[362425374,1748283040685,-535.86810161,0.00022969,8]
[362425375,1748283040696,-789.53,0.00023023,4]
[362425376,1748283040706,-535.86810161,0.00023038,8]
[362425377,1748283040716,-535.86810161,0.00023107,8]
[362425378,1748283040726,-789.53,0.00023123,6]
[362425379,1748283040737,-535.86810161,0.00023176,8]
[362425380,1748283040749,-789.53,0.00023223,7]
[362425381,1748283040759,-535.86810161,0.00023245,8]
[362425382,1748283040769,-535.86810161,0.00023314,9]
[362425383,1748283040779,-789.53,0.00023323,3]
[362425384,1748283040791,-500.0,0.00023356,2]
[362425385,1748283040801,-535.86810161,0.00023383,9]
[362425386,1748283040811,-789.53,0.00023423,4]
[362425387,1748283040821,-535.86810161,0.00023452,9]
[362425388,1748283040831,-1888.06896922,0.00023494,2]
[362425389,1748283040843,-535.86810161,0.00023521,9]
[362425390,1748283040854,-789.53,0.00023523,5]
[362425391,1748283040863,-4595.28,0.00023585,2]
[362425392,1748283040874,-5000.0,0.00023585,2]
[362425393,1748283040884,-535.86810161,0.0002359,9]
[362425394,1748283040894,-789.53,0.00023623,4]
[362425395,1748283040904,-535.86810161,0.00023659,9]
[362425396,1748283040913,-420.0,0.00023669,2]
[362425397,1748283040922,-789.53,0.00023723,7]
[362425398,1748283040931,-535.86810161,0.00023728,9]
[362425399,1748283040940,-535.86810161,0.00023797,9]
[362425400,1748283040949,-789.53,0.00023823,2]
[362425401,1748283040958,-535.86810161,0.00023866,10]
[362425402,1748283040967,-789.53,0.00023923,2]
[362425403,1748283040975,-535.86810161,0.00023934,10]
[362425404,1748283040984,-535.86810161,0.00024003,10]
[362425405,1748283040992,-789.53,0.00024023,3]
[362425406,1748283041001,-535.86810161,0.00024072,10]
[362425407,1748283041010,-789.53,0.00024123,2]
[362425408,1748283041018,-535.86810161,0.00024141,10]
[362425409,1748283041027,-989.5,0.00024152,15]
[362425410,1748283041036,-546.578936,0.00024163,3]
[362425411,1748283041045,-535.86810161,0.0002421,10]
[362425412,1748283041053,-789.53,0.00024223,5]
[362425413,1748283041062,-535.86810161,0.00024279,10]
[362425414,1748283041072,-215.0738,0.00024304,2]
[362425415,1748283041082,-789.53,0.00024323,4]
[362425416,1748283041091,-272.8240542,0.00024326,2]
[362425417,1748283041101,-535.86810161,0.00024348,11]
[362425418,1748283041111,-535.86810161,0.00024417,11]
[362425419,1748283041121,-789.53,0.00024423,5]
[362425420,1748283041131,-535.86810161,0.00024486,11]
[362425421,1748283041142,-291.2,0.000245,2]
[362425422,1748283041152,-329.3595395,0.000245,2]
[362425423,1748283041162,-329.35953946,0.00024514,2]
[362425424,1748283041178,-789.53,0.00024523,2]
[362425425,1748283041190,-500.0,0.00024528,2]
[362425426,1748283041201,-500.0,0.00024528,2]
[362425427,1748283041211,-500.0,0.00024528,2]
[362425428,1748283041220,-500.0,0.00024528,2]
[362425429,1748283041230,-181.82015177,0.00024528,2]
[362425430,1748283041239,-290.8454511,0.00024528,2]
[362425431,1748283041249,-582.26323822,0.00024528,2]
[362425432,1748283041259,-500.0,0.00024528,2]
[362425433,1748283041269,-500.0,0.00024528,2]
[362425434,1748283041278,-500.0,0.00024528,2]
[362425435,1748283041288,-326.9462046,0.00024528,2]
[362425436,1748283041297,-500.0,0.00024528,2]
[362425437,1748283041306,-329.35953946,0.00024529,2]
[362425438,1748283041316,-329.35953946,0.00024543,2]
[362425439,1748283041326,-5078.09648842,0.00024553,2]
[362425440,1748283041335,-198.78066594,0.00024555,2]
[362425441,1748283041345,-198.0,0.00024555,2]
[362425442,1748283041355,-151.0,0.00024555,2]
[362425443,1748283041364,-198.55117016,0.00024555,2]
[362425444,1748283041374,-198.0,0.00024555,2]
[362425445,1748283041383,-151.0,0.00024555,2]
[362425446,1748283041392,-151.9289401,0.00024555,2]
[362425447,1748283041402,-152.72279231,0.00024555,2]
[362425448,1748283041411,-151.0,0.00024555,2]
[362425449,1748283041421,-151.0,0.00024555,2]
[362425450,1748283041431,-500.0,0.00024555,2]
[362425451,1748283041441,-151.26819811,0.00024555,2]
[362425452,1748283041450,-151.0,0.00024555,2]
[362425453,1748283041458,-500.0,0.00024555,2]
[362425454,1748283041467,-151.0,0.00024555,2]
[362425455,1748283041476,-152.71912524,0.00024555,2]
[362425456,1748283041485,-151.0,0.00024555,2]
[362425457,1748283041495,-198.66345026,0.00024555,2]
[362425458,1748283041504,-151.0,0.00024555,2]
[362425459,1748283041513,-535.86810161,0.00024555,11]
[362425460,1748283041523,-9626.87546065,0.00024556,2]
[362425461,1748283041533,-329.35953946,0.00024557,2]
[362425462,1748283041542,-501.44768991,0.00024573,2]
[362425463,1748283041551,-376.43417452,0.00024573,2]
[362425464,1748283041561,-500.0,0.00024573,2]
[362425465,1748283041571,-500.0,0.00024573,2]
[362425466,1748283041581,-500.0,0.00024573,2]
[362425467,1748283041590,-500.0,0.00024573,2]
[362425468,1748283041599,-500.0,0.00024573,2]
[362425469,1748283041609,-198.0,0.00024582,2]
[362425470,1748283041619,-151.0,0.00024582,2]
[362425471,1748283041629,-151.0,0.00024582,2]
[362425472,1748283041639,-151.0,0.00024582,2]
[362425473,1748283041651,-501.48568543,0.00024582,2]
[362425474,1748283041661,-151.0,0.00024582,2]
[362425475,1748283041671,-349.65206438,0.00024582,2]
[362425476,1748283041681,-151.0,0.00024582,2]
[362425477,1748283041691,-221.87044723,0.00024582,2]
[362425478,1748283041701,-361.74,0.0002459,3]
[362425479,1748283041711,-180.87,0.0002459,3]
[362425480,1748283041721,-542.61,0.0002459,3]
[362425481,1748283041731,-9858.66178554,0.000246,2]
[362425482,1748283041741,-2768.53776531,0.000246,3]
[362425483,1748283041924,-68308.97422587,0.000246,2]
[362425484,1748283041939,-1093.24667025,0.000246,2]
[362425492,1748283048172,-420.0,0.00024031,2]
[362425493,1748283048182,-262.08,0.000245,2]
[362425494,1748283048192,-1478.5944017,0.000246,2]
[362425495,1748283048329,-1921.50470218,0.000246,2]
[362425496,1748283048339,-2439.78998352,0.000246,5]
[362425500,1748284032114,-2612.28482151,0.00018585,2]
[362425501,1748284032138,-500.0,0.00021164,2]
[362425502,1748284032165,-209.97170085,0.00021327,2]
[362425503,1748284032186,-160.0,0.00021426,2]
[362425504,1748284032209,-300.0,0.00021426,2]
[362425505,1748284032231,-300.0,0.00021426,2]
[362425506,1748284032252,-160.0,0.00021427,2]
[362425507,1748284032274,-212.59253735,0.00021427,2]
[362425508,1748284032296,-12654.40314616,0.00021427,2]
[362425509,1748284032318,-562.09,0.00021717,2]
[362425510,1748284032339,-2443.01455146,0.00022035,2]
[362425511,1748284040134,-872.59555499,0.00022035,2]
[362425515,1748284146106,-300.0,0.00017998,2]
[362425516,1748284146130,-500.0,0.00017999,2]
[362425517,1748284146153,-500.0,0.00017999,2]
[362425518,1748284146176,-500.0,0.00017999,2]
[362425519,1748284146199,-500.0,0.00017999,2]
[362425520,1748284146226,-500.0,0.00017999,2]
[362425521,1748284146249,-500.0,0.00017999,2]
[362425522,1748284146271,-568.51570842,0.00017999,2]
[362425523,1748284146296,-500.0,0.00017999,2]
[362425524,1748284146319,-500.0,0.00017999,2]
[362425525,1748284146343,-500.0,0.00017999,2]
[362425526,1748284146365,-500.0,0.00017999,2]
[362425527,1748284146388,-362.87584037,0.00017999,2]
[362425528,1748284146411,-500.0,0.00017999,2]
[362425529,1748284146437,-500.0,0.00017999,2]
[362425530,1748284146472,-500.0,0.00017999,2]
[362425531,1748284146502,-500.0,0.00017999,2]
[362425532,1748284146526,-500.0,0.00017999,2]
[362425533,1748284146551,-500.0,0.00017999,2]
[362425534,1748284146574,-500.0,0.00017999,2]
[362425535,1748284146599,-500.0,0.00017999,2]
[362425536,1748284146623,-609.57298638,0.00017999,2]
[362425537,1748284146648,-1545.97465686,0.00018,2]
[362425538,1748284147105,-42886.20309739,0.00018,2]
[362425539,1748284147128,-12230.90967065,0.00018,2]
[362425540,1748284147149,-5820.19251366,0.00018,2]
[362425541,1748284147171,-17314.71479523,0.00018149,2]
[362425542,1748284147194,-144217.94522891,0.00019,2]
[362425546,1748284151081,-59115.61585109,0.00019,2]
[362425547,1748284151106,-420.0,0.00019638,2]
[362425548,1748284151127,-172.07833423,0.0002,2]
[362425549,1748284151148,-1180.5818008,0.0002,2]
[362425550,1748284151169,-359.4958546,0.0002,2]
[362425551,1748284151190,-30000.0,0.0002,2]
[362425552,1748284151222,-376.26641168,0.000205,3]
[362425553,1748284151248,-376.26641143,0.000205,3]
[362425554,1748284151274,-376.26641143,0.000205,3]
[362425555,1748284151299,-376.26641143,0.000205,3]
[362425556,1748284151325,-376.26641143,0.0002059,3]
[362425557,1748284151352,-376.26641143,0.00020762,3]
[362425558,1748284151378,-376.26641143,0.00020934,4]
[362425559,1748284151399,-267.67777991,0.00021,2]
[362425560,1748284151425,-376.26641143,0.00021107,4]
[362425561,1748284151446,-200.0,0.00021164,2]
[362425562,1748284151467,-10383.30434781,0.00021174,2]